fUST/lending_fUST_20251207
["ID","MTS","AMOUNT","RATE_DAILY","PERIOD"]
[396568385,1765055115193,-10000.01,6.706e-05,2]
[396568386,1765055115342,-10000.01,6.706e-05,2]
[396568387,1765055115588,-10000.01,6.706e-05,2]
[396568388,1765055118145,899.68,6.6e-05,2]
[396568389,1765055129208,-151.36159493,6.706e-05,2]
[396568390,1765055132788,-286.47767855,6.706e-05,2]
[396568391,1765055134879,-562.43420098,6.706e-05,2]
[396568392,1765055137105,-179.2736605,6.706e-05,2]
[396568393,1765055139520,-176.24101114,6.706e-05,2]
[396568394,1765055142606,-151.33,6.706e-05,2]
[396568395,1765055145352,-302.05,6.706e-05,2]
[396568396,1765055147018,-413.49271773,6.706e-05,2]
[396568397,1765055160706,16985.47319056,6.639e-05,2]
[396568398,1765055161373,-10000.01,6.706e-05,2]
[396568399,1765055161508,-10000.01,6.706e-05,2]
[396568400,1765055161640,-10000.01,6.706e-05,2]
[396568401,1765055161845,-10000.01,6.706e-05,2]
[396568402,1765055161983,-10000.01,6.706e-05,2]
[396568403,1765055162123,-10000.01,6.706e-05,2]
[396568404,1765055162249,-10000.01,6.706e-05,2]
[396568405,1765055162406,-300.0,6.705e-05,2]
[396568406,1765055162453,-9400.01,6.706e-05,2]
[396568407,1765055162527,-10000.01,6.706e-05,2]
[396568408,1765055162633,-10000.01,6.706e-05,2]
[396568409,1765055168477,-151.05,6.706e-05,2]
[396568410,1765055175768,22723.61158269,6.639e-05,2]
[396568411,1765055177621,522.32,6.6e-05,2]
[396568412,1765055183767,152.36165063,6.639e-05,2]
[396568413,1765055189184,-201.36392891,6.705e-05,2]
[396568414,1765055191573,-259.45980149,6.705e-05,2]
[396568415,1765055194221,-39.1762696,6.705e-05,2]
[396568416,1765055194245,-145.6657724,6.705e-05,2]
[396568417,1765055199965,3165.9477311,6.638e-05,2]
[396568418,1765055203578,-354.3342276,6.705e-05,2]
[396568419,1765055203613,-500.0,6.705e-05,2]
[396568420,1765055203647,-500.0,6.705e-05,2]
[396568421,1765055203681,-500.0,6.705e-05,2]
[396568422,1765055203716,-500.0,6.705e-05,2]
[396568423,1765055203752,-500.0,6.705e-05,2]
[396568424,1765055204108,-500.0,6.705e-05,2]
[396568425,1765055204145,-500.0,6.705e-05,2]
[396568426,1765055204181,-500.0,6.705e-05,2]
[396568427,1765055204216,-500.0,6.705e-05,2]
[396568428,1765055204501,-291.3415448,6.705e-05,2]
[396568429,1765055206133,-208.6584552,6.705e-05,2]
[396568430,1765055206160,-306.13589724,6.705e-05,2]
[396568431,1765055207635,3641.27128476,6.638e-05,2]
[396568432,1765055210083,-335.26951715,6.705e-05,2]
[396568433,1765055210121,-500.0,6.705e-05,2]
[396568434,1765055210163,-917.79825083,6.705e-05,2]
[396568435,1765055210207,-917.79825083,6.705e-05,2]
[396568436,1765055210249,-917.79825083,6.705e-05,2]
[396568437,1765055210290,-917.79825083,6.705e-05,2]
[396568438,1765055210332,-69.28670823,6.705e-05,2]
[396568439,1765055210585,-848.5115426,6.705e-05,2]
[396568440,1765055216222,-917.79825083,6.705e-05,2]
[396568441,1765055216262,-917.79825083,6.705e-05,2]
[396568442,1765055216303,-917.79825083,6.705e-05,2]
[396568443,1765055216347,-917.79825083,6.705e-05,2]
[396568444,1765055216407,-917.79825083,6.705e-05,2]
[396568445,1765055216714,-822.0274917,6.705e-05,2]
[396568446,1765055219242,-95.77075913,6.705e-05,2]
[396568447,1765055219273,-55.22924087,6.705e-05,2]
[396568448,1765055221054,-261.56317189,6.705e-05,2]
[396568449,1765055223156,151.0,6.638e-05,2]
[396568450,1765055230869,261.56317189,6.637e-05,2]
[396568451,1765055234286,-244.97180865,6.704e-05,2]
[396568452,1765055237155,906.53,6.6e-05,2]
[396568453,1765055249528,-55.02819135,6.704e-05,2]
[396568454,1765055249559,-163.53645457,6.705e-05,2]
[396568455,1765055260976,350.6,6.671e-05,2]
[396568456,1765055268874,244.97180865,6.638e-05,2]
[396568457,1765055298304,534.38,6.6e-05,2]
[396568458,1765055324191,-179.15044541,6.704e-05,2]
[396568459,1765055340225,346.13,6.667e-05,2]
[396568460,1765055341803,250.0,0.00013104,3]
[396568461,1765055347085,-326.33529571,6.704e-05,2]
[396568462,1765055353703,10000.01,6.606e-05,2]
[396568463,1765055353735,10000.01,6.606e-05,2]
[396568464,1765055353765,10000.01,6.606e-05,2]
[396568465,1765055353795,7204.83501946,6.606e-05,2]
[396568466,1765055353824,10000.01,6.606e-05,2]
[396568467,1765055353855,10000.01,6.606e-05,2]
[396568468,1765055353887,28271.45828743,6.606e-05,2]
[396568469,1765055353922,804523.65669311,6.606e-05,2]
[396568470,1765055357943,902.67,6.6e-05,2]
[396568471,1765055360225,-326.21155818,6.704e-05,2]
[396568472,1765055364358,3072.3303343,6.001e-05,2]
[396568474,1765055383933,368.3027007,6.571e-05,2]
[396568475,1765055406151,368.3027007,6.571e-05,2]
[396568476,1765055428953,228.5353287,5.754e-05,2]
[396568477,1765055429054,575.3027007,6.571e-05,2]
[396568503,1765055431615,-368.3027007,6.637e-05,2]
[396568505,1765055431625,-207.0,6.637e-05,2]
[396568507,1765055431635,-101.73472855,6.67e-05,2]
[396568512,1765055431691,-269.79579311,6.67e-05,2]
[396568514,1765055431700,-350.82,6.675e-05,2]
[396568516,1765055431710,-368.3027007,6.704e-05,2]
[396568518,1765055431720,-1200.0,6.704e-05,2]
[396568520,1765055431731,-300.0,6.704e-05,2]
[396568521,1765055431741,-500.0,6.705e-05,2]
[396568523,1765055431751,-500.0,6.705e-05,2]
[396568525,1765055431760,-500.0,6.705e-05,2]
[396568526,1765055431770,-500.0,6.705e-05,2]
[396568527,1765055431780,-500.0,6.705e-05,2]
[396568528,1765055431789,-374.72103545,6.705e-05,2]
[396568529,1765055431799,-500.0,6.705e-05,2]
[396568530,1765055431810,-500.0,6.705e-05,2]
[396568531,1765055431820,-500.0,6.705e-05,2]
[396568532,1765055431829,-500.0,6.705e-05,2]
[396568533,1765055431839,-500.0,6.705e-05,2]
[396568534,1765055431849,-500.0,6.705e-05,2]
[396568535,1765055431859,-500.0,6.705e-05,2]
[396568536,1765055431868,-500.0,6.705e-05,2]
[396568537,1765055431877,-500.0,6.705e-05,2]
[396568538,1765055431887,-500.0,6.705e-05,2]
[396568539,1765055431896,-500.0,6.705e-05,2]
[396568540,1765055431906,-500.0,6.705e-05,2]
[396568541,1765055431916,-812.03715456,6.705e-05,2]
[396568542,1765055431925,-812.03715456,6.705e-05,2]
[396568543,1765055431935,-812.03715456,6.705e-05,2]
[396568544,1765055431945,-707.0634237,6.705e-05,2]
[396568545,1765055431961,-104.97373086,6.705e-05,2]
[396568546,1765055431972,-477.53932861,6.705e-05,2]
[396568547,1765055431983,-334.49782595,6.705e-05,2]
[396568548,1765055431993,-540.32608245,6.705e-05,2]
[396568553,1765055437536,160.0,5.8e-07,2]
[396568554,1765055437699,-528.78757581,6.638e-05,2]
[396568555,1765055437710,-77.63242419,6.638e-05,2]
[396568556,1765055437720,-271.71107211,6.705e-05,2]
[396568557,1765055437729,-427.3630511,6.705e-05,2]
[396568558,1765055437754,-384.67410346,6.705e-05,2]
[396568559,1765055437763,-502.07213794,6.705e-05,2]
[396568560,1765055437774,-309.96501662,6.705e-05,2]
[396568561,1765055437783,-812.03715456,6.705e-05,2]
[396568562,1765055437792,-812.03715456,6.705e-05,2]
[396568564,1765055437802,-812.03715456,6.705e-05,2]
[396568566,1765055437811,-812.03715456,6.705e-05,2]
[396568568,1765055437820,-812.03715456,6.705e-05,2]
[396568570,1765055437829,-812.03715456,6.705e-05,2]
[396568572,1765055437839,-812.03715456,6.705e-05,2]
[396568574,1765055437848,-812.03715456,6.705e-05,2]
[396568576,1765055437858,-812.03715456,6.705e-05,2]
[396568578,1765055437867,-812.03715456,6.705e-05,2]
[396568580,1765055437876,-73.13873385,6.705e-05,2]
[396568582,1765055437888,-475.9999938,6.705e-05,2]
[396568587,1765055437940,-262.89842691,6.705e-05,2]
[396568589,1765055437950,-812.03715456,6.705e-05,2]
[396568591,1765055437960,-812.03715456,6.705e-05,2]
[396568593,1765055437969,-812.03715456,6.705e-05,2]
[396568595,1765055437978,-812.03715456,6.705e-05,2]
[396568597,1765055437987,-812.03715456,6.705e-05,2]
[396568599,1765055437997,-812.03715456,6.705e-05,2]
[396568601,1765055438006,-812.03715456,6.705e-05,2]
[396568603,1765055438015,-812.03715456,6.705e-05,2]
[396568605,1765055438025,-812.03715456,6.705e-05,2]
[396568607,1765055438034,-812.03715456,6.705e-05,2]
[396568609,1765055438043,-812.03715456,6.705e-05,2]
[396568611,1765055438054,-812.03715456,6.705e-05,2]
[396568613,1765055438065,-812.03715456,6.705e-05,2]
[396568615,1765055438075,-812.03715456,6.705e-05,2]
[396568617,1765055438085,-812.03715456,6.705e-05,2]
[396568619,1765055438094,-812.03715456,6.705e-05,2]
[396568621,1765055438104,-812.03715456,6.705e-05,2]
[396568623,1765055438115,-812.03715456,6.705e-05,2]
[396568625,1765055438125,-812.03715456,6.705e-05,2]
[396568627,1765055438135,-812.03715456,6.705e-05,2]
[396568629,1765055438144,-812.03715456,6.705e-05,2]
[396568630,1765055438155,-812.03715456,6.705e-05,2]
[396568632,1765055438164,-812.03715456,6.705e-05,2]
[396568634,1765055438174,-812.03715456,6.705e-05,2]
[396568636,1765055438184,-812.03715456,6.705e-05,2]
[396568638,1765055438195,-812.03715456,6.705e-05,2]
[396568640,1765055438205,-812.03715456,6.705e-05,2]
[396568642,1765055438215,-500.0,6.705e-05,2]
[396568644,1765055438224,-500.0,6.705e-05,2]
[396568646,1765055438233,-201.02690033,6.705e-05,2]
[396568648,1765055438243,-797.27284266,6.705e-05,2]
[396568650,1765055438253,-797.27284266,6.705e-05,2]
[396568652,1765055438263,-797.27284266,6.705e-05,2]
[396568654,1765055438276,-797.27284266,6.705e-05,2]
[396568656,1765055438285,-797.27284266,6.705e-05,2]
[396568657,1765055438294,-797.27284266,6.705e-05,2]
[396568659,1765055438304,-797.27284266,6.705e-05,2]
[396568661,1765055438314,-797.27284266,6.705e-05,2]
[396568663,1765055438323,-797.27284266,6.705e-05,2]
[396568665,1765055438333,-797.27284266,6.705e-05,2]
[396568667,1765055438342,-797.27284266,6.705e-05,2]
[396568669,1765055438354,-797.27284266,6.705e-05,2]
[396568671,1765055438364,-797.27284266,6.705e-05,2]
[396568673,1765055438373,-797.27284266,6.705e-05,2]
[396568675,1765055438383,-797.27284266,6.705e-05,2]
[396568677,1765055438392,-797.27284266,6.705e-05,2]
[396568679,1765055438401,-797.27284266,6.705e-05,2]
[396568681,1765055438411,-797.27284266,6.705e-05,2]
[396568683,1765055438420,-797.27284266,6.705e-05,2]
[396568685,1765055438429,-797.27284266,6.705e-05,2]
[396568687,1765055438439,-797.27284266,6.705e-05,2]
[396568689,1765055438449,-797.27284266,6.705e-05,2]
[396568691,1765055438458,-797.27284266,6.705e-05,2]
[396568692,1765055438468,-797.27284266,6.705e-05,2]
[396568694,1765055438478,-797.27284266,6.705e-05,2]
[396568696,1765055438487,-797.27284266,6.705e-05,2]
[396568698,1765055438497,-797.27284266,6.705e-05,2]
[396568700,1765055438506,-797.27284266,6.705e-05,2]
[396568702,1765055438516,-797.27284266,6.705e-05,2]
[396568704,1765055438525,-782.32397686,6.705e-05,2]
[396568706,1765055438534,-782.32397686,6.705e-05,2]
[396568708,1765055438544,-782.32397686,6.705e-05,2]
[396568710,1765055438552,-782.32397686,6.705e-05,2]
[396568711,1765055438562,-782.32397686,6.705e-05,2]
[396568713,1765055438572,-782.32397686,6.705e-05,2]
[396568715,1765055438581,-782.32397686,6.705e-05,2]
[396568717,1765055438590,-782.32397686,6.705e-05,2]
[396568719,1765055438599,-782.32397686,6.705e-05,2]
[396568721,1765055438609,-782.32397686,6.705e-05,2]
[396568723,1765055438620,-782.32397686,6.705e-05,2]
[396568725,1765055438628,-782.32397686,6.705e-05,2]
[396568727,1765055438637,-782.32397686,6.705e-05,2]
[396568729,1765055438646,-782.32397686,6.705e-05,2]
[396568731,1765055438655,-782.32397686,6.705e-05,2]
[396568732,1765055438665,-782.32397686,6.705e-05,2]
[396568734,1765055438674,-500.0,6.705e-05,2]
[396568736,1765055438683,-500.0,6.705e-05,2]
[396568738,1765055438692,-500.0,6.705e-05,2]
[396568740,1765055438702,-500.0,6.705e-05,2]
[396568742,1765055438710,-500.0,6.705e-05,2]
[396568744,1765055438720,-295.11364588,6.705e-05,2]
[396568746,1765055438729,-500.0,6.705e-05,2]
[396568748,1765055438739,-500.0,6.705e-05,2]
[396568749,1765055438748,-500.0,6.705e-05,2]
[396568751,1765055438758,-500.0,6.705e-05,2]
[396568753,1765055438767,-1000.0,6.706e-05,2]
[396568755,1765055438776,-1000.0,6.706e-05,2]
[396568757,1765055438785,-3494.0538279,6.706e-05,2]
[396568759,1765055438794,-41860.3567555,6.706e-05,2]
[396568761,1765055438804,-152.36165063,6.706e-05,2]
[396568763,1765055438814,-3378.67547202,6.8e-05,2]
[396568765,1765055438824,-250.0,6.805e-05,2]
[396568767,1765055438833,-153.0,6.9e-05,2]
[396568796,1765055439114,-180.226,6.901e-05,2]
[396568798,1765055439124,-810.507,6.901e-05,2]
[396568800,1765055439134,-153.0,6.98e-05,2]
[396568802,1765055439143,-307.8398572,6.98e-05,2]
[396568804,1765055439153,-306.0,6.98e-05,2]
[396568806,1765055439164,-301.9689207,6.98e-05,2]
[396568808,1765055439174,-262.6805209,6.98e-05,2]
[396568810,1765055439184,-301.9689207,6.98e-05,2]
[396568812,1765055439194,-596.6264415,6.98e-05,2]
[396568814,1765055439204,-1984.64881965,6.983e-05,2]
[396568816,1765055439215,-301.9689207,6.99e-05,2]
[396568818,1765055439224,-701.64,6.993e-05,2]
[396568820,1765055439235,-153.0,7e-05,2]
[396568822,1765055439245,-301.9260101,7e-05,2]
[396568824,1765055439255,-186.65470561,7.004e-05,2]
[396568826,1765055439265,-335.64249163,7.004e-05,2]
[396568828,1765055439276,-306.25495541,7.004e-05,2]
[396568829,1765055439287,-937.62741754,7.033e-05,2]
[396568831,1765055439297,-1666.89318673,7.033e-05,2]
[396568833,1765055439308,-2604.52060427,7.033e-05,2]
[396568835,1765055439319,-571.0711773,7.073e-05,2]
[396568837,1765055439328,-1027.92811915,7.073e-05,2]
[396568839,1765055439338,-1827.42776737,7.073e-05,2]
[396568841,1765055439348,-2855.35588651,7.073e-05,2]
[396568843,1765055439358,-3378.67547201,7.155e-05,2]
[396568845,1765055439367,-151.52713657,7.156e-05,2]
[396568847,1765055439376,-151.0,7.156e-05,2]
[396568849,1765055439386,-500.0,7.156e-05,2]
[396568851,1765055439395,-498.99141825,7.156e-05,2]
[396568853,1765055439404,-898.18455285,7.156e-05,2]
[396568856,1765055439414,-1596.7725384,7.156e-05,2]
[396568859,1765055439424,-2494.95709126,7.156e-05,2]
[396568862,1765055439434,-289.94686224,7.156e-05,2]
[396568864,1765055439443,-330.16685825,7.156e-05,2]
[396568866,1765055439452,-500.0,7.159e-05,2]
[396568868,1765055439461,-500.0,7.159e-05,2]
[396568870,1765055439473,-500.0,7.159e-05,2]
[396568872,1765055439482,-151.0,7.159e-05,2]
[396568874,1765055439491,-151.0,7.159e-05,2]
[396568876,1765055439502,-151.0,7.159e-05,2]
[396568878,1765055439513,-535.0,7.159e-05,2]
[396568880,1765055439523,-152.05336779,7.159e-05,2]
[396568882,1765055439533,-151.0,7.159e-05,2]
[396568884,1765055439542,-151.0,7.159e-05,2]
[396568886,1765055439551,-191.29937825,7.159e-05,2]
[396568888,1765055439560,-1156.71,7.196e-05,2]
[396568890,1765055439569,-151.0,7.293e-05,2]
[396568892,1765055439579,-500.0,7.293e-05,2]
[396568894,1765055439588,-500.0,7.296e-05,2]
[396568896,1765055439597,-500.0,7.296e-05,2]
[396568898,1765055439611,-500.0,7.296e-05,2]
[396568900,1765055439620,-151.0,7.296e-05,2]
[396568901,1765055439628,-151.0,7.296e-05,2]
[396568903,1765055439637,-198.0,7.296e-05,2]
[396568905,1765055439646,-535.0,7.296e-05,2]
[396568907,1765055439656,-198.0,7.296e-05,2]
[396568909,1765055439665,-165.24,7.303e-05,2]
[396568911,1765055439674,-165.24,7.311e-05,2]
[396568913,1765055439683,-1052.46,7.311e-05,2]
[396568915,1765055439693,-165.24,7.318e-05,2]
[396568917,1765055439702,-420.0,7.374e-05,2]
[396568919,1765055439711,-1984.64881965,7.39e-05,2]
[396568921,1765055439720,-151.0,7.43e-05,2]
[396568923,1765055439730,-500.55780571,7.43e-05,2]
[396568925,1765055439739,-500.0,7.433e-05,2]
[396568927,1765055439748,-500.81627121,7.433e-05,2]
[396568929,1765055439758,-500.0,7.433e-05,2]
[396568931,1765055439767,-151.0,7.433e-05,2]
[396568933,1765055439776,-535.0,7.433e-05,2]
[396568935,1765055439785,-3494.0538279,7.466e-05,2]
[396568937,1765055439794,-277.2023561,7.501e-05,2]
[396568938,1765055439803,-150.0,7.501e-05,2]
[396568940,1765055439813,-3378.67547201,7.51e-05,2]
[396568942,1765055439822,-1984.64881965,7.517e-05,2]
[396568944,1765055439831,-151.0,7.567e-05,2]
[396568946,1765055439840,-500.0,7.57e-05,2]
[396568948,1765055439849,-500.0,7.57e-05,2]
[396568950,1765055439859,-151.0,7.57e-05,2]
[396568952,1765055439869,-535.0,7.57e-05,2]
[396568954,1765055439878,-800.0,7.616e-05,2]
[396568956,1765055439888,-1403.27,7.629e-05,2]
[396568958,1765055439898,-500.0,7.707e-05,2]
[396568960,1765055439907,-500.0,7.707e-05,2]
[396568962,1765055439917,-245.7281992,7.707e-05,2]
[396568964,1765055439927,-535.0,7.707e-05,2]
[396568966,1765055439936,-1535.45431964,7.711e-05,2]
[396568968,1765055439946,-9340.3081067,7.713e-05,2]
[396568970,1765055439955,-1984.64881965,7.772e-05,2]
[396568972,1765055439965,-471.24400537,7.775e-05,2]
[396568974,1765055439974,-631.0,7.777e-05,2]
[396568976,1765055439984,-1359.0,7.777e-05,2]
[396568978,1765055439994,-2155.0,7.777e-05,2]
[396568980,1765055440004,-3289.61502455,7.826e-05,2]
[396568982,1765055440013,-500.0,7.844e-05,2]
[396568984,1765055440022,-500.0,7.844e-05,2]
[396568986,1765055440031,-535.0,7.844e-05,2]
[396568987,1765055440040,-3378.67547201,7.864e-05,2]
[396568989,1765055440049,-2084.1044436,7.938e-05,2]
[396568991,1765055440059,-1754.09,7.947e-05,2]
[396568993,1765055440068,-500.0,7.981e-05,2]
[396568995,1765055440082,-500.0,7.981e-05,2]
[396568997,1765055440091,-535.0,7.981e-05,2]
[396568999,1765055440100,-800.0,8.004e-05,2]
[396569001,1765055440110,-392.70333781,8.049e-05,2]
[396569003,1765055440119,-1535.45431964,8.075e-05,2]
[396569005,1765055440128,-587.0,8.112e-05,2]
[396569007,1765055440137,-500.0,8.118e-05,2]
[396569009,1765055440146,-500.0,8.118e-05,2]
[396569011,1765055440156,-535.0,8.118e-05,2]
[396569013,1765055440164,-150.0,8.203e-05,2]
[396569015,1765055440173,-150.0,8.203e-05,2]
[396569017,1765055440183,-150.0,8.203e-05,2]
[396569019,1765055440191,-150.0,8.203e-05,2]
[396569020,1765055440200,-150.0,8.203e-05,2]
[396569022,1765055440209,-150.0,8.203e-05,2]
[396569024,1765055440218,-1984.64881965,8.217e-05,2]
[396569026,1765055440228,-500.0,8.219e-05,2]
[396569028,1765055440237,-500.0,8.219e-05,2]
[396569030,1765055440247,-500.0,8.219e-05,2]
[396569032,1765055440256,-500.0,8.219e-05,2]
[396569034,1765055440266,-610.7349498,8.219e-05,2]
[396569036,1765055440277,-382.2941732,8.219e-05,2]
[396569038,1765055440288,-500.0,8.219e-05,2]
[396569040,1765055440297,-500.0,8.219e-05,2]
[396569042,1765055440307,-500.0,8.219e-05,2]
[396569044,1765055440316,-500.0,8.219e-05,2]
[396569046,1765055440325,-629.45553012,8.219e-05,2]
[396569048,1765055440334,-898.73,8.219e-05,2]
[396569050,1765055440342,-500.0,8.219e-05,2]
[396569051,1765055440353,-500.0,8.219e-05,2]
[396569053,1765055440362,-500.0,8.219e-05,2]
[396569055,1765055440371,-500.0,8.219e-05,2]
[396569057,1765055440380,-337.24814335,8.219e-05,2]
[396569059,1765055440390,-500.0,8.219e-05,2]
[396569061,1765055440399,-500.0,8.219e-05,2]
[396569063,1765055440408,-500.0,8.219e-05,2]
[396569065,1765055440418,-500.0,8.219e-05,2]
[396569067,1765055440427,-500.0,8.219e-05,2]
[396569069,1765055440436,-663.47,8.219e-05,2]
[396569071,1765055440452,-713.32,8.219e-05,2]
[396569073,1765055440461,-500.0,8.219e-05,2]
[396569075,1765055440470,-500.0,8.219e-05,2]
[396569077,1765055440480,-500.0,8.219e-05,2]
[396569079,1765055440490,-500.0,8.219e-05,2]
[396569081,1765055440499,-500.0,8.219e-05,2]
[396569083,1765055440508,-563.66,8.219e-05,2]
[396569085,1765055440518,-500.0,8.219e-05,2]
[396569087,1765055440527,-500.0,8.219e-05,2]
[396569089,1765055440536,-500.0,8.219e-05,2]
[396569091,1765055440546,-500.0,8.219e-05,2]
[396569093,1765055440557,-500.0,8.219e-05,2]
[396569095,1765055440566,-525.07,8.219e-05,2]
[396569097,1765055440575,-537.49,8.219e-05,2]
[396569099,1765055440585,-624.36,8.219e-05,2]
[396569101,1765055440595,-500.0,8.219e-05,2]
[396569103,1765055440605,-500.0,8.219e-05,2]
[396569105,1765055440614,-500.0,8.219e-05,2]
[396569107,1765055440623,-622.45,8.219e-05,2]
[396569109,1765055440632,-500.0,8.219e-05,2]
[396569111,1765055440642,-500.0,8.219e-05,2]
[396569113,1765055440653,-3682.836384,8.219e-05,2]
[396569115,1765055440663,-500.0,8.219e-05,2]
[396569117,1765055440672,-1589.85,8.219e-05,2]
[396569119,1765055440681,-500.0,8.219e-05,2]
[396569121,1765055440691,-500.0,8.219e-05,2]
[396569123,1765055440701,-1087.31,8.219e-05,2]
[396569125,1765055440710,-500.0,8.219e-05,2]
[396569127,1765055440720,-569.04126739,8.219e-05,2]
[396569129,1765055440732,-500.0,8.219e-05,2]
[396569131,1765055440742,-500.0,8.219e-05,2]
[396569133,1765055440751,-500.0,8.219e-05,2]
[396569135,1765055440761,-500.0,8.219e-05,2]
[396569137,1765055440770,-713.0,8.219e-05,2]
[396569139,1765055440779,-500.0,8.219e-05,2]
[396569141,1765055440788,-500.0,8.219e-05,2]
[396569143,1765055440798,-566.05,8.219e-05,2]
[396569145,1765055440809,-500.0,8.219e-05,2]
[396569147,1765055440818,-500.0,8.219e-05,2]
[396569149,1765055440827,-500.0,8.219e-05,2]
[396569151,1765055440836,-531.59385015,8.219e-05,2]
[396569153,1765055440846,-500.0,8.219e-05,2]
[396569155,1765055440855,-500.0,8.219e-05,2]
[396569157,1765055440863,-500.0,8.219e-05,2]
[396569159,1765055440872,-500.0,8.219e-05,2]
[396569160,1765055440882,-500.0,8.219e-05,2]
[396569162,1765055440893,-877.38,8.219e-05,2]
[396569164,1765055440902,-500.0,8.219e-05,2]
[396569166,1765055440911,-500.0,8.219e-05,2]
[396569168,1765055440921,-500.0,8.219e-05,2]
[396569170,1765055440930,-500.0,8.219e-05,2]
[396569172,1765055440940,-1132.83,8.219e-05,2]
[396569174,1765055440949,-500.0,8.219e-05,2]
[396569176,1765055440958,-500.0,8.219e-05,2]
[396569178,1765055440967,-500.0,8.219e-05,2]
[396569180,1765055440977,-500.0,8.219e-05,2]
[396569182,1765055440986,-500.0,8.219e-05,2]
[396569184,1765055440996,-500.0,8.219e-05,2]
[396569186,1765055441006,-500.0,8.219e-05,2]
[396569188,1765055441015,-500.0,8.219e-05,2]
[396569190,1765055441025,-500.0,8.219e-05,2]
[396569192,1765055441034,-681.31,8.219e-05,2]
[396569194,1765055441044,-500.0,8.219e-05,2]
[396569196,1765055441055,-500.0,8.219e-05,2]
[396569198,1765055441066,-500.0,8.219e-05,2]
[396569200,1765055441075,-500.0,8.219e-05,2]
[396569202,1765055441084,-500.0,8.219e-05,2]
[396569204,1765055441093,-241.67084064,8.219e-05,2]
[396569206,1765055441102,-500.0,8.219e-05,2]
[396569208,1765055441112,-551.66,8.219e-05,2]
[396569210,1765055441121,-539.12,8.219e-05,2]
[396569212,1765055441130,-500.07895048,8.219e-05,2]
[396569214,1765055441140,-534.25,8.219e-05,2]
[396569216,1765055441149,-500.0,8.219e-05,2]
[396569218,1765055441159,-500.0,8.219e-05,2]
[396569220,1765055441168,-500.0,8.219e-05,2]
[396569222,1765055441177,-582.41,8.219e-05,2]
[396569224,1765055441186,-674.04,8.219e-05,2]
[396569226,1765055441196,-500.0,8.219e-05,2]
[396569228,1765055441206,-500.0,8.219e-05,2]
[396569230,1765055441215,-500.0,8.219e-05,2]
[396569232,1765055441224,-543.00929766,8.219e-05,2]
[396569234,1765055441234,-500.0,8.219e-05,2]
[396569236,1765055441243,-500.0,8.219e-05,2]
[396569238,1765055441253,-500.0,8.219e-05,2]
[396569240,1765055441262,-562.86,8.219e-05,2]
[396569242,1765055441272,-500.0,8.219e-05,2]
[396569244,1765055441284,-500.0,8.219e-05,2]
[396569246,1765055441294,-500.0,8.219e-05,2]
[396569248,1765055441304,-500.0,8.219e-05,2]
[396569250,1765055441313,-500.0,8.219e-05,2]
[396569252,1765055441323,-400.44190731,8.219e-05,2]
[396569254,1765055441332,-500.0,8.219e-05,2]
[396569256,1765055441341,-1000.0,8.219e-05,2]
[396569258,1765055441350,-2198.97,8.219e-05,2]
[396569260,1765055441361,-500.0,8.219e-05,2]
[396569262,1765055441371,-500.0,8.219e-05,2]
[396569264,1765055441381,-500.0,8.219e-05,2]
[396569266,1765055441390,-500.0,8.219e-05,2]
[396569268,1765055441399,-500.0,8.219e-05,2]
[396569270,1765055441409,-500.0,8.219e-05,2]
[396569272,1765055441420,-523.79,8.219e-05,2]
[396569274,1765055441429,-658.81,8.219e-05,2]
[396569276,1765055441438,-500.0,8.219e-05,2]
[396569278,1765055441447,-500.0,8.219e-05,2]
[396569280,1765055441456,-500.0,8.219e-05,2]
[396569282,1765055441465,-2003.01,8.219e-05,2]
[396569284,1765055441475,-500.0,8.219e-05,2]
[396569286,1765055441484,-500.0,8.219e-05,2]
[396569288,1765055441494,-500.0,8.219e-05,2]
[396569290,1765055441503,-500.0,8.219e-05,2]
[396569292,1765055441513,-500.0,8.219e-05,2]
[396569294,1765055441521,-500.0,8.219e-05,2]
[396569296,1765055441531,-558.7,8.219e-05,2]
[396569298,1765055441540,-500.0,8.219e-05,2]
[396569300,1765055441549,-500.0,8.219e-05,2]
[396569302,1765055441558,-500.0,8.219e-05,2]
[396569304,1765055441567,-500.0,8.219e-05,2]
[396569306,1765055441576,-500.0,8.219e-05,2]
[396569308,1765055441585,-500.0,8.219e-05,2]
[396569310,1765055441594,-500.0,8.219e-05,2]